[Event "Titled Tuesday Blitz June 28 Late 2022"]
[White "Voege, Tobias"]
[Black "Vidonyak, Roman"]
[WhiteFideId "1270513"]
[BlackFideId "14100622"]
[WhiteElo "2379"]
[BlackElo "2346"]
[Result "1-0"]
[Round "07"]
[TimeControl "180+1"]
[Date "2022.06.29"]
[WhiteClock "0:00:14"]
[BlackClock "0:00:08"]

1. e4 {[%clk 0:03:00]}  c5 {[%clk 0:02:59]} 2. Nf3 {[%clk 0:03:00]}  d6 {[%clk 0:03:00]} 3. d4 {[%clk 0:02:59]}  cxd4 {[%clk 0:03:01]} 4. c3 {[%clk 0:03:00]}  d3 {[%clk 0:02:59]} 5. Bxd3 {[%clk 0:02:59]}  g6 {[%clk 0:03:00]} 6. c4 {[%clk 0:03:00]}  Bg7 {[%clk 0:03:00]} 7. Nc3 {[%clk 0:03:00]}  Nf6 {[%clk 0:03:01]} 8. O-O {[%clk 0:02:59]}  O-O {[%clk 0:03:01]} 9. h3 {[%clk 0:02:51]}  Nc6 {[%clk 0:02:52]} 10. Be3 {[%clk 0:02:42]}  h6 {[%clk 0:02:43]} 11. a3 {[%clk 0:02:36]}  Be6 {[%clk 0:02:42]} 12. Rc1 {[%clk 0:02:32]}  Rc8 {[%clk 0:02:41]} 13. b4 {[%clk 0:02:32]}  Nd7 {[%clk 0:02:29]} 14. Nd5 {[%clk 0:02:27]}  Bxd5 {[%clk 0:02:25]} 15. cxd5 {[%clk 0:02:17]}  Nce5 {[%clk 0:02:23]} 16. Nxe5 {[%clk 0:02:08]}  Nxe5 {[%clk 0:02:24]} 17. Be2 {[%clk 0:01:47]}  a6 {[%clk 0:02:16]} 18. Qd2 {[%clk 0:01:41]}  Kh7 {[%clk 0:02:15]} 19. f4 {[%clk 0:01:37]}  Nd7 {[%clk 0:02:12]} 20. Rxc8 {[%clk 0:01:36]}  Qxc8 {[%clk 0:02:10]} 21. Rc1 {[%clk 0:01:37]}  Qb8 {[%clk 0:02:01]} 22. Bf3 {[%clk 0:01:23]}  Rc8 {[%clk 0:01:59]} 23. g4 {[%clk 0:01:17]}  b5 {[%clk 0:01:33]} 24. Kg2 {[%clk 0:00:55]}  Rc4 {[%clk 0:01:24]} 25. Be2 {[%clk 0:00:47]}  Rc7 {[%clk 0:00:54]} 26. Rc6 {[%clk 0:00:32]}  Rxc6 {[%clk 0:00:46]} 27. dxc6 {[%clk 0:00:33]}  Nb6 {[%clk 0:00:43]} 28. Qc2 {[%clk 0:00:31]}  Nc8 {[%clk 0:00:25]} 29. c7 {[%clk 0:00:23]}  Qb7 {[%clk 0:00:26]} 30. Bf3 {[%clk 0:00:23]}  e6 {[%clk 0:00:23]} 31. f5 {[%clk 0:00:20]}  Be5 {[%clk 0:00:19]} 32. g5 {[%clk 0:00:18]}  h5 {[%clk 0:00:19]} 33. fxg6+ {[%clk 0:00:17]}  fxg6 {[%clk 0:00:19]} 34. Bf2 {[%clk 0:00:17]}  d5 {[%clk 0:00:10]} 35. exd5 {[%clk 0:00:18]}  Qxc7 {[%clk 0:00:10]} 36. Qxc7+ {[%clk 0:00:17]}  Bxc7 {[%clk 0:00:11]} 37. dxe6 {[%clk 0:00:17]}  Bd6 {[%clk 0:00:11]} 38. Bb7 {[%clk 0:00:15]}  Ne7 {[%clk 0:00:11]} 39. Bxa6 {[%clk 0:00:15]}  Bf4 {[%clk 0:00:11]} 40. h4 {[%clk 0:00:14]}  Bc1 {[%clk 0:00:11]} 41. Bxb5 {[%clk 0:00:13]}  Bxa3 {[%clk 0:00:12]} 42. Bc5 {[%clk 0:00:14]}  Nf5 {[%clk 0:00:08]} 43. e7 {[%clk 0:00:14]} 1-0


[Site "https://www.chess.com"]

[Event "Titled Tuesday Blitz June 28 Late 2022"]
[White "Vusatiuk, Vladimir"]
[Black "Preotu, Razvan"]
[WhiteFideId "14118610"]
[BlackFideId "2613280"]
[WhiteElo "2157"]
[BlackElo "2407"]
[Result "0-1"]
[Round "07"]
[TimeControl "180+1"]
[Date "2022.06.28"]
[WhiteClock "0:00:02"]
[BlackClock "0:00:04"]

1. d4 {[%clk 0:03:00]}  Nf6 {[%clk 0:02:59]} 2. c4 {[%clk 0:03:01]}  g6 {[%clk 0:02:59]} 3. Nc3 {[%clk 0:03:00]}  d5 {[%clk 0:03:00]} 4. cxd5 {[%clk 0:03:00]}  Nxd5 {[%clk 0:03:00]} 5. e4 {[%clk 0:02:59]}  Nxc3 {[%clk 0:03:01]} 6. bxc3 {[%clk 0:02:59]}  Bg7 {[%clk 0:03:01]} 7. Bc4 {[%clk 0:02:40]}  c5 {[%clk 0:02:59]} 8. Ne2 {[%clk 0:02:40]}  Nc6 {[%clk 0:02:59]} 9. O-O {[%clk 0:02:40]}  cxd4 {[%clk 0:02:57]} 10. cxd4 {[%clk 0:02:40]}  Nxd4 {[%clk 0:02:57]} 11. Bb2 {[%clk 0:02:00]}  Nxe2+ {[%clk 0:02:41]} 12. Qxe2 {[%clk 0:02:01]}  O-O {[%clk 0:02:28]} 13. Rfd1 {[%clk 0:01:53]}  Qa5 {[%clk 0:02:16]} 14. Bxg7 {[%clk 0:01:46]}  Kxg7 {[%clk 0:02:17]} 15. Qb2+ {[%clk 0:01:47]}  Kg8 {[%clk 0:02:11]} 16. Rd5 {[%clk 0:01:43]}  Qc7 {[%clk 0:02:05]} 17. Rc1 {[%clk 0:01:39]}  Be6 {[%clk 0:02:04]} 18. Bb3 {[%clk 0:01:39]}  Qf4 {[%clk 0:02:01]} 19. Rdd1 {[%clk 0:00:53]}  Bxb3 {[%clk 0:01:50]} 20. Qxb3 {[%clk 0:00:54]}  Qxe4 {[%clk 0:01:46]} 21. Re1 {[%clk 0:00:54]}  Rac8 {[%clk 0:01:37]} 22. Rb1 {[%clk 0:00:51]}  Qf5 {[%clk 0:00:37]} 23. Qxb7 {[%clk 0:00:51]}  Rc2 {[%clk 0:00:36]} 24. Qxa7 {[%clk 0:00:49]}  e6 {[%clk 0:00:36]} 25. a4 {[%clk 0:00:46]}  Rd8 {[%clk 0:00:28]} 26. Rf1 {[%clk 0:00:33]}  Rdd2 {[%clk 0:00:28]} 27. Ra1 {[%clk 0:00:26]}  h5 {[%clk 0:00:24]} 28. a5 {[%clk 0:00:26]}  h4 {[%clk 0:00:22]} 29. h3 {[%clk 0:00:27]}  g5 {[%clk 0:00:21]} 30. a6 {[%clk 0:00:27]}  g4 {[%clk 0:00:20]} 31. hxg4 {[%clk 0:00:27]}  Qxg4 {[%clk 0:00:21]} 32. Qe3 {[%clk 0:00:28]}  Rd8 {[%clk 0:00:04]} 33. a7 {[%clk 0:00:25]}  Ra8 {[%clk 0:00:05]} 34. Ra5 {[%clk 0:00:18]}  Kf8 {[%clk 0:00:02]} 35. Rb1 {[%clk 0:00:15]}  h3 {[%clk 0:00:02]} 36. Rb8+ {[%clk 0:00:13]}  Ke7 {[%clk 0:00:03]} 37. g3 {[%clk 0:00:07]}  Rc1+ {[%clk 0:00:02]} 38. Kh2 {[%clk 0:00:08]}  Qd1 {[%clk 0:00:02]} 39. Qa3+ {[%clk 0:00:06]}  Kf6 {[%clk 0:00:01]} 40. Qxc1 {[%clk 0:00:06]}  Qxc1 {[%clk 0:00:02]} 41. Rxa8 {[%clk 0:00:06]}  Qf1 {[%clk 0:00:02]} 42. Rf5+ {[%clk 0:00:03]}  exf5 {[%clk 0:00:03]} 43. g4 {[%clk 0:00:02]}  Qg2# {[%clk 0:00:04]} 0-1


[Site "https://www.chess.com"]

[Event "Titled Tuesday Blitz June 28 Late 2022"]
[White "Wang, Isaac"]
[Black "Yurasova, Daria"]
[WhiteFideId "30977185"]
[BlackFideId "34146919"]
[WhiteElo "2311"]
[BlackElo "2021"]
[Result "1-0"]
[Round "07"]
[TimeControl "180+1"]
[Date "2022.06.29"]
[WhiteClock "0:00:43"]
[BlackClock "0:01:24"]

1. d4 {[%clk 0:03:00]}  d5 {[%clk 0:03:00]} 2. c4 {[%clk 0:03:00]}  dxc4 {[%clk 0:02:58]} 3. Nf3 {[%clk 0:03:00]}  Nf6 {[%clk 0:02:57]} 4. e3 {[%clk 0:03:00]}  e6 {[%clk 0:02:58]} 5. Bxc4 {[%clk 0:03:00]}  a6 {[%clk 0:02:58]} 6. a4 {[%clk 0:03:00]}  c5 {[%clk 0:02:58]} 7. O-O {[%clk 0:02:58]}  Nc6 {[%clk 0:02:56]} 8. Qe2 {[%clk 0:02:57]}  cxd4 {[%clk 0:02:55]} 9. Rd1 {[%clk 0:02:54]}  Qc7 {[%clk 0:02:54]} 10. exd4 {[%clk 0:02:42]}  Be7 {[%clk 0:02:54]} 11. Nc3 {[%clk 0:02:42]}  O-O {[%clk 0:02:53]} 12. Bg5 {[%clk 0:02:38]}  Nb4 {[%clk 0:02:53]} 13. Rac1 {[%clk 0:02:34]}  Qa5 {[%clk 0:02:42]} 14. Ne5 {[%clk 0:02:11]}  h6 {[%clk 0:02:33]} 15. Bd2 {[%clk 0:02:06]}  Qd8 {[%clk 0:02:32]} 16. Ne4 {[%clk 0:01:59]}  Nbd5 {[%clk 0:02:30]} 17. Nxf6+ {[%clk 0:01:55]}  Bxf6 {[%clk 0:02:29]} 18. Qg4 {[%clk 0:01:50]}  Kh8 {[%clk 0:02:14]} 19. Bd3 {[%clk 0:01:45]}  Ne7 {[%clk 0:01:35]} 20. Bb4 {[%clk 0:01:12]}  a5 {[%clk 0:01:26]} 21. Ba3 {[%clk 0:00:59]}  Bd7 {[%clk 0:01:26]} 22. Qe4 {[%clk 0:00:53]}  g6 {[%clk 0:01:24]} 23. Qf4 {[%clk 0:00:47]}  Nd5 {[%clk 0:01:22]} 24. Qxh6+ {[%clk 0:00:45]}  Kg8 {[%clk 0:01:23]} 25. Bxf8 {[%clk 0:00:43]}  Qxf8 {[%clk 0:01:23]} 26. Qxf8+ {[%clk 0:00:43]}  Rxf8 {[%clk 0:01:24]} 27. Nxd7 {[%clk 0:00:43]} 1-0


[Site "https://www.chess.com"]

[Event "Titled Tuesday Blitz June 28 Late 2022"]
[White "Xiong, Jeffery"]
[Black "Riehle, Marco"]
[WhiteFideId "2047640"]
[BlackFideId "12904392"]
[WhiteElo "2714"]
[BlackElo "2462"]
[Result "1/2-1/2"]
[Round "07"]
[TimeControl "180+1"]
[Date "2022.06.28"]
[WhiteClock "0:00:23"]
[BlackClock "0:00:12"]

1. d4 {[%clk 0:03:00]}  d5 {[%clk 0:02:59]} 2. c4 {[%clk 0:02:58]}  e6 {[%clk 0:03:00]} 3. Nf3 {[%clk 0:02:57]}  Nf6 {[%clk 0:02:58]} 4. e3 {[%clk 0:02:57]}  b6 {[%clk 0:02:55]} 5. b3 {[%clk 0:02:57]}  Bb7 {[%clk 0:02:54]} 6. Bd3 {[%clk 0:02:57]}  Bd6 {[%clk 0:02:52]} 7. O-O {[%clk 0:02:57]}  O-O {[%clk 0:02:52]} 8. cxd5 {[%clk 0:02:58]}  exd5 {[%clk 0:02:52]} 9. Ba3 {[%clk 0:02:59]}  Ne4 {[%clk 0:02:51]} 10. Qc1 {[%clk 0:02:51]}  c5 {[%clk 0:02:42]} 11. Rd1 {[%clk 0:02:42]}  Qf6 {[%clk 0:02:31]} 12. Bb2 {[%clk 0:02:36]}  Qh6 {[%clk 0:02:27]} 13. dxc5 {[%clk 0:02:24]}  Bxc5 {[%clk 0:02:20]} 14. Nc3 {[%clk 0:02:21]}  Rc8 {[%clk 0:01:58]} 15. Bxe4 {[%clk 0:02:07]}  dxe4 {[%clk 0:01:58]} 16. Nd4 {[%clk 0:02:08]}  Nc6 {[%clk 0:01:48]} 17. Nxc6 {[%clk 0:01:46]}  Bxc6 {[%clk 0:01:34]} 18. Qd2 {[%clk 0:01:45]}  Qg5 {[%clk 0:01:29]} 19. Ne2 {[%clk 0:01:41]}  Rd8 {[%clk 0:01:25]} 20. Qc3 {[%clk 0:01:39]}  Rd3 {[%clk 0:01:20]} 21. Rxd3 {[%clk 0:01:31]}  exd3 {[%clk 0:01:20]} 22. Nf4 {[%clk 0:01:32]}  Be4 {[%clk 0:01:11]} 23. h4 {[%clk 0:01:29]}  Qg4 {[%clk 0:01:08]} 24. Qe5 {[%clk 0:01:20]}  d2 {[%clk 0:00:58]} 25. Qxe4 {[%clk 0:01:20]}  d1=Q+ {[%clk 0:00:59]} 26. Rxd1 {[%clk 0:01:21]}  Qxd1+ {[%clk 0:00:59]} 27. Kh2 {[%clk 0:01:22]}  Rd8 {[%clk 0:00:52]} 28. Qf5 {[%clk 0:01:07]}  Bf8 {[%clk 0:00:36]} 29. Bd4 {[%clk 0:01:03]}  Qd2 {[%clk 0:00:33]} 30. Nh5 {[%clk 0:01:02]}  Rxd4 {[%clk 0:00:23]} 31. exd4 {[%clk 0:01:02]}  Qxd4 {[%clk 0:00:23]} 32. g3 {[%clk 0:01:03]}  Qb2 {[%clk 0:00:21]} 33. Kg2 {[%clk 0:00:56]}  Qxa2 {[%clk 0:00:21]} 34. Qd5 {[%clk 0:00:56]}  Qc2 {[%clk 0:00:18]} 35. Nf4 {[%clk 0:00:55]}  Qc5 {[%clk 0:00:18]} 36. Qb7 {[%clk 0:00:55]}  a5 {[%clk 0:00:18]} 37. Nd5 {[%clk 0:00:55]}  h6 {[%clk 0:00:18]} 38. Nxb6 {[%clk 0:00:41]}  Qb4 {[%clk 0:00:17]} 39. Qa6 {[%clk 0:00:40]}  Bc5 {[%clk 0:00:15]} 40. Qa8+ {[%clk 0:00:35]}  Kh7 {[%clk 0:00:14]} 41. Nd7 {[%clk 0:00:35]}  Be7 {[%clk 0:00:13]} 42. Qd5 {[%clk 0:00:34]}  Kg8 {[%clk 0:00:13]} 43. Ne5 {[%clk 0:00:35]}  Bf6 {[%clk 0:00:11]} 44. Nxf7 {[%clk 0:00:30]}  Kh7 {[%clk 0:00:10]} 45. Qf5+ {[%clk 0:00:29]}  Kg8 {[%clk 0:00:10]} 46. Nxh6+ {[%clk 0:00:27]}  gxh6 {[%clk 0:00:11]} 47. Qxf6 {[%clk 0:00:28]}  Qxb3 {[%clk 0:00:10]} 48. Qd8+ {[%clk 0:00:28]}  Kh7 {[%clk 0:00:10]} 49. Qxa5 {[%clk 0:00:29]}  Qb7+ {[%clk 0:00:10]} 50. Kh2 {[%clk 0:00:27]}  Qf7 {[%clk 0:00:10]} 51. Qd2 {[%clk 0:00:25]}  h5 {[%clk 0:00:10]} 52. Qd3+ {[%clk 0:00:22]}  Kg7 {[%clk 0:00:11]} 53. Kg2 {[%clk 0:00:23]}  Kh6 {[%clk 0:00:11]} 54. Qd6+ {[%clk 0:00:22]}  Kg7 {[%clk 0:00:11]} 55. Qe5+ {[%clk 0:00:22]}  Kh7 {[%clk 0:00:11]} 56. Qe4+ {[%clk 0:00:22]}  Kg7 {[%clk 0:00:12]} 57. Qf3 {[%clk 0:00:22]}  Kg8 {[%clk 0:00:12]} 58. Qxf7+ {[%clk 0:00:22]}  Kh8 {[%clk 0:00:12]} 59. Kf3 {[%clk 0:00:23]} 1/2-1/2


[Site "https://www.chess.com"]

[Event "Titled Tuesday Blitz June 28 Late 2022"]
[White "Zhigalko, Sergei"]
[Black "Janaszak, Dawid"]
[WhiteFideId "13502956"]
[BlackFideId "1119206"]
[WhiteElo "2662"]
[BlackElo "2199"]
[Result "1-0"]
[Round "07"]
[TimeControl "180+1"]
[Date "2022.06.28"]
[WhiteClock "0:00:28"]
[BlackClock "0:00:07"]

1. e4 {[%clk 0:03:00]}  c5 {[%clk 0:03:00]} 2. c3 {[%clk 0:02:59]}  e5 {[%clk 0:02:55]} 3. Nf3 {[%clk 0:02:59]}  Nc6 {[%clk 0:02:54]} 4. Bc4 {[%clk 0:02:59]}  Nf6 {[%clk 0:02:55]} 5. Ng5 {[%clk 0:02:59]}  d5 {[%clk 0:02:55]} 6. exd5 {[%clk 0:03:00]}  Na5 {[%clk 0:02:55]} 7. Bb5+ {[%clk 0:03:01]}  Bd7 {[%clk 0:02:49]} 8. Qa4 {[%clk 0:03:00]}  h6 {[%clk 0:02:41]} 9. Nf3 {[%clk 0:02:33]}  Bd6 {[%clk 0:02:27]} 10. d4 {[%clk 0:02:13]}  exd4 {[%clk 0:02:15]} 11. cxd4 {[%clk 0:02:08]}  O-O {[%clk 0:02:08]} 12. Bxd7 {[%clk 0:02:07]}  Nxd7 {[%clk 0:02:05]} 13. O-O {[%clk 0:02:04]}  cxd4 {[%clk 0:01:30]} 14. Qxd4 {[%clk 0:01:57]}  Rc8 {[%clk 0:01:24]} 15. Nc3 {[%clk 0:01:57]}  Nc4 {[%clk 0:01:19]} 16. Ne4 {[%clk 0:01:52]}  Bb8 {[%clk 0:01:14]} 17. b3 {[%clk 0:01:49]}  Nde5 {[%clk 0:00:56]} 18. bxc4 {[%clk 0:01:27]}  Nxf3+ {[%clk 0:00:45]} 19. gxf3 {[%clk 0:01:26]}  Qh4 {[%clk 0:00:45]} 20. f4 {[%clk 0:01:26]}  f5 {[%clk 0:00:20]} 21. Ng3 {[%clk 0:01:14]}  Rf6 {[%clk 0:00:20]} 22. Re1 {[%clk 0:01:06]}  Rg6 {[%clk 0:00:17]} 23. Bd2 {[%clk 0:00:55]}  Bd6 {[%clk 0:00:16]} 24. Re6 {[%clk 0:00:47]}  Bc5 {[%clk 0:00:16]} 25. Qc3 {[%clk 0:00:40]}  Rg4 {[%clk 0:00:12]} 26. Rae1 {[%clk 0:00:37]}  b5 {[%clk 0:00:11]} 27. Re8+ {[%clk 0:00:34]}  Rxe8 {[%clk 0:00:11]} 28. Rxe8+ {[%clk 0:00:34]}  Kf7 {[%clk 0:00:12]} 29. Re5 {[%clk 0:00:31]}  b4 {[%clk 0:00:08]} 30. Rxf5+ {[%clk 0:00:29]}  Kg6 {[%clk 0:00:07]} 31. Qd3 {[%clk 0:00:28]} 1-0


[Site "https://www.chess.com"]

[Event "Titled Tuesday Blitz June 28 Late 2022"]
[White "Aggelis, Nikolaos"]
[Black "Le Hetet, Nicolas"]
[WhiteFideId "4213220"]
[BlackFideId "634824"]
[WhiteElo "2154"]
[BlackElo "2345"]
[Result "0-1"]
[Round "08"]
[TimeControl "180+1"]
[Date "2022.06.29"]
[WhiteClock "0:00:05"]
[BlackClock "0:00:18"]

1. d4 {[%clk 0:03:00]}  d5 {[%clk 0:02:56]} 2. Nf3 {[%clk 0:02:56]}  Nf6 {[%clk 0:02:55]} 3. c4 {[%clk 0:02:55]}  c6 {[%clk 0:02:55]} 4. Nc3 {[%clk 0:02:54]}  e6 {[%clk 0:02:54]} 5. Bg5 {[%clk 0:02:53]}  dxc4 {[%clk 0:02:53]} 6. e4 {[%clk 0:02:53]}  b5 {[%clk 0:02:54]} 7. e5 {[%clk 0:02:51]}  h6 {[%clk 0:02:55]} 8. Bh4 {[%clk 0:02:50]}  g5 {[%clk 0:02:55]} 9. exf6 {[%clk 0:02:50]}  gxh4 {[%clk 0:02:56]} 10. Ne5 {[%clk 0:02:48]}  Qxf6 {[%clk 0:02:56]} 11. a4 {[%clk 0:02:47]}  Bb7 {[%clk 0:02:35]} 12. axb5 {[%clk 0:02:30]}  c5 {[%clk 0:02:35]} 13. Be2 {[%clk 0:01:55]}  Bxg2 {[%clk 0:02:27]} 14. Bf3 {[%clk 0:01:52]}  Bxf3 {[%clk 0:02:21]} 15. Qxf3 {[%clk 0:01:52]}  Qxf3 {[%clk 0:02:19]} 16. Nxf3 {[%clk 0:01:53]}  cxd4 {[%clk 0:02:15]} 17. Nxd4 {[%clk 0:01:52]}  Bc5 {[%clk 0:02:15]} 18. Nf3 {[%clk 0:01:39]}  h3 {[%clk 0:02:06]} 19. Ra4 {[%clk 0:01:37]}  Nd7 {[%clk 0:02:03]} 20. Rxc4 {[%clk 0:01:36]}  Rg8 {[%clk 0:02:03]} 21. Rh4 {[%clk 0:01:33]}  Rg2 {[%clk 0:01:55]} 22. Rf1 {[%clk 0:01:26]}  a6 {[%clk 0:01:54]} 23. Rxh6 {[%clk 0:01:18]}  axb5 {[%clk 0:01:48]} 24. Rh8+ {[%clk 0:01:17]}  Nf8 {[%clk 0:01:45]} 25. Ne4 {[%clk 0:01:17]}  Bb4+ {[%clk 0:01:37]} 26. Ke2 {[%clk 0:01:16]}  Ra2 {[%clk 0:01:34]} 27. Rb1 {[%clk 0:00:54]}  f5 {[%clk 0:01:25]} 28. Neg5 {[%clk 0:00:49]}  Ke7 {[%clk 0:01:23]} 29. Nxh3 {[%clk 0:00:45]}  Bc5 {[%clk 0:01:17]} 30. Kf1 {[%clk 0:00:36]}  Rg4 {[%clk 0:01:12]} 31. Ne5 {[%clk 0:00:27]}  Re4 {[%clk 0:01:04]} 32. Nd3 {[%clk 0:00:26]}  Bd4 {[%clk 0:00:59]} 33. Rh6 {[%clk 0:00:21]}  Bg7 {[%clk 0:00:42]} 34. Rh5 {[%clk 0:00:21]}  Rd4 {[%clk 0:00:29]} 35. Nb4 {[%clk 0:00:16]}  Rxb4 {[%clk 0:00:28]} 36. Ng1 {[%clk 0:00:13]}  Rbxb2 {[%clk 0:00:27]} 37. Rxb2 {[%clk 0:00:14]}  Rxb2 {[%clk 0:00:28]} 38. Rh3 {[%clk 0:00:14]}  Ng6 {[%clk 0:00:24]} 39. Rg3 {[%clk 0:00:12]}  Nf4 {[%clk 0:00:23]} 40. Rxg7+ {[%clk 0:00:11]}  Kf6 {[%clk 0:00:23]} 41. Ne2 {[%clk 0:00:05]}  Rb1+ {[%clk 0:00:18]} 0-1


[Site "https://www.chess.com"]

[Event "Titled Tuesday Blitz June 28 Late 2022"]
[White "Araujo Sanchez, Josue"]
[Black "Leenhouts, Koen"]
[WhiteFideId "6416896"]
[BlackFideId "1008439"]
[WhiteElo "2339"]
[BlackElo "2409"]
[Result "0-1"]
[Round "08"]
[TimeControl "180+1"]
[Date "2022.06.28"]
[WhiteClock "0:00:57"]
[BlackClock "0:00:38"]

1. e4 {[%clk 0:02:44]}  e5 {[%clk 0:02:54]} 2. Bc4 {[%clk 0:02:40]}  Nf6 {[%clk 0:02:51]} 3. d3 {[%clk 0:02:15]}  c6 {[%clk 0:02:50]} 4. Nf3 {[%clk 0:02:12]}  d6 {[%clk 0:02:48]} 5. O-O {[%clk 0:02:12]}  Be7 {[%clk 0:02:45]} 6. a4 {[%clk 0:02:12]}  O-O {[%clk 0:02:45]} 7. Re1 {[%clk 0:02:12]}  Bg4 {[%clk 0:02:39]} 8. Nbd2 {[%clk 0:02:11]}  Nbd7 {[%clk 0:02:38]} 9. h3 {[%clk 0:02:10]}  Bh5 {[%clk 0:02:38]} 10. Nf1 {[%clk 0:02:10]}  Re8 {[%clk 0:02:35]} 11. g4 {[%clk 0:02:07]}  Bg6 {[%clk 0:02:35]} 12. Ng3 {[%clk 0:02:07]}  Nf8 {[%clk 0:02:30]} 13. Ba2 {[%clk 0:02:05]}  Ne6 {[%clk 0:02:23]} 14. Nh4 {[%clk 0:02:02]}  Nf4 {[%clk 0:02:18]} 15. Nxg6 {[%clk 0:01:56]}  hxg6 {[%clk 0:02:13]} 16. Bxf4 {[%clk 0:01:53]}  exf4 {[%clk 0:02:12]} 17. Ne2 {[%clk 0:01:53]}  g5 {[%clk 0:02:09]} 18. Nd4 {[%clk 0:01:53]}  d5 {[%clk 0:01:58]} 19. e5 {[%clk 0:01:49]}  Nh7 {[%clk 0:01:44]} 20. e6 {[%clk 0:01:48]}  Bf6 {[%clk 0:01:41]} 21. exf7+ {[%clk 0:01:47]}  Kxf7 {[%clk 0:01:42]} 22. Nf3 {[%clk 0:01:45]}  Nf8 {[%clk 0:01:35]} 23. d4 {[%clk 0:01:44]}  Ng6 {[%clk 0:01:34]} 24. c4 {[%clk 0:01:43]}  Qd7 {[%clk 0:01:15]} 25. cxd5 {[%clk 0:01:35]}  cxd5 {[%clk 0:01:16]} 26. Qb3 {[%clk 0:01:34]}  Rad8 {[%clk 0:01:14]} 27. a5 {[%clk 0:01:31]}  Kg8 {[%clk 0:01:01]} 28. Rxe8+ {[%clk 0:01:30]}  Qxe8 {[%clk 0:01:02]} 29. Qxb7 {[%clk 0:01:29]}  Qe4 {[%clk 0:00:57]} 30. Bb1 {[%clk 0:01:10]}  Qxf3 {[%clk 0:00:54]} 31. Bxg6 {[%clk 0:01:10]}  Bxd4 {[%clk 0:00:50]} 32. Qf7+ {[%clk 0:01:07]}  Kh8 {[%clk 0:00:49]} 33. Bf5 {[%clk 0:00:57]}  Qg3+ {[%clk 0:00:42]} 34. Kh1 {[%clk 0:00:57]}  Qxh3+ {[%clk 0:00:42]} 35. Kg1 {[%clk 0:00:57]}  Qg3+ {[%clk 0:00:41]} 36. Kh1 {[%clk 0:00:57]}  Qf3+ {[%clk 0:00:39]} 37. Kg1 {[%clk 0:00:58]}  Qxf2+ {[%clk 0:00:38]} 38. Kh1 {[%clk 0:00:58]}  Qh4+ {[%clk 0:00:38]} 39. Kg2 {[%clk 0:00:57]}  Qg3+ {[%clk 0:00:38]} 0-1


[Site "https://www.chess.com"]

[Event "Titled Tuesday Blitz June 28 Late 2022"]
[White "Barria Zuniga, Daniel"]
[Black "Dardha, Daniel"]
[WhiteFideId "3400816"]
[BlackFideId "240990"]
[WhiteElo "2414"]
[BlackElo "2482"]
[Result "0-1"]
[Round "08"]
[TimeControl "180+1"]
[Date "2022.06.28"]
[WhiteClock "0:00:16"]
[BlackClock "0:01:12"]

1. d4 {[%clk 0:03:00]}  Nf6 {[%clk 0:02:45]} 2. c4 {[%clk 0:03:00]}  d6 {[%clk 0:02:41]} 3. Nf3 {[%clk 0:02:59]}  g6 {[%clk 0:02:40]} 4. Nc3 {[%clk 0:02:59]}  Bg7 {[%clk 0:02:39]} 5. e4 {[%clk 0:02:59]}  O-O {[%clk 0:02:39]} 6. Be2 {[%clk 0:02:59]}  e5 {[%clk 0:02:38]} 7. d5 {[%clk 0:02:58]}  Nh5 {[%clk 0:02:36]} 8. g3 {[%clk 0:02:57]}  a5 {[%clk 0:02:27]} 9. h4 {[%clk 0:02:45]}  Nd7 {[%clk 0:02:23]} 10. Be3 {[%clk 0:02:37]}  Ndf6 {[%clk 0:02:22]} 11. Nd2 {[%clk 0:02:37]}  c6 {[%clk 0:02:18]} 12. Kf1 {[%clk 0:02:30]}  Qd7 {[%clk 0:02:07]} 13. Na4 {[%clk 0:02:22]}  Qd8 {[%clk 0:01:56]} 14. Kg2 {[%clk 0:02:14]}  c5 {[%clk 0:01:56]} 15. a3 {[%clk 0:02:07]}  Bd7 {[%clk 0:01:53]} 16. Nc3 {[%clk 0:02:05]}  Qc8 {[%clk 0:01:53]} 17. f3 {[%clk 0:02:04]}  Ne8 {[%clk 0:01:51]} 18. b4 {[%clk 0:01:54]}  axb4 {[%clk 0:01:50]} 19. axb4 {[%clk 0:01:55]}  Rxa1 {[%clk 0:01:50]} 20. Qxa1 {[%clk 0:01:54]}  cxb4 {[%clk 0:01:50]} 21. Nb5 {[%clk 0:01:54]}  f5 {[%clk 0:01:44]} 22. Bf2 {[%clk 0:01:36]}  f4 {[%clk 0:01:40]} 23. g4 {[%clk 0:01:32]}  Ng3 {[%clk 0:01:40]} 24. Bxg3 {[%clk 0:01:19]}  fxg3 {[%clk 0:01:41]} 25. Rc1 {[%clk 0:01:10]}  Bxg4 {[%clk 0:01:39]} 26. c5 {[%clk 0:01:03]}  Bh3+ {[%clk 0:01:36]} 27. Kxg3 {[%clk 0:01:02]}  Bh6 {[%clk 0:01:32]} 28. Nc4 {[%clk 0:00:51]}  Bf4+ {[%clk 0:01:30]} 29. Kf2 {[%clk 0:00:51]}  Qd8 {[%clk 0:01:30]} 30. Bf1 {[%clk 0:00:44]}  Qxh4+ {[%clk 0:01:28]} 31. Ke2 {[%clk 0:00:44]}  Bxc1 {[%clk 0:01:28]} 32. Qxc1 {[%clk 0:00:44]}  Bxf1+ {[%clk 0:01:27]} 33. Qxf1 {[%clk 0:00:45]}  Qh2+ {[%clk 0:01:26]} 34. Qf2 {[%clk 0:00:45]}  Qxf2+ {[%clk 0:01:25]} 35. Kxf2 {[%clk 0:00:45]}  dxc5 {[%clk 0:01:25]} 36. Nxe5 {[%clk 0:00:45]}  b3 {[%clk 0:01:25]} 37. Nc4 {[%clk 0:00:44]}  Nf6 {[%clk 0:01:24]} 38. Ke3 {[%clk 0:00:42]}  h5 {[%clk 0:01:24]} 39. d6 {[%clk 0:00:29]}  h4 {[%clk 0:01:24]} 40. e5 {[%clk 0:00:29]}  h3 {[%clk 0:01:24]} 41. Kf2 {[%clk 0:00:26]}  b2 {[%clk 0:01:23]} 42. Nxb2 {[%clk 0:00:24]}  Ng4+ {[%clk 0:01:22]} 43. Kg3 {[%clk 0:00:23]}  Nxe5 {[%clk 0:01:21]} 44. Kxh3 {[%clk 0:00:20]}  Rxf3+ {[%clk 0:01:18]} 45. Kg2 {[%clk 0:00:19]}  Rb3 {[%clk 0:01:18]} 46. Nc4 {[%clk 0:00:18]}  Nxc4 {[%clk 0:01:13]} 47. d7 {[%clk 0:00:16]}  Rd3 {[%clk 0:01:12]} 0-1


[Site "https://www.chess.com"]